[Event "Austrian Bundesliga 2023-24"]
[Site "Austria"]
[Date "2024.03.23"]
[Round "10.17"]
[White "Dotzer, Lukas"]
[Black "Saric, Ante"]
[Result "0-1"]
[ECO "B43"]
[WhiteElo "2338"]
[BlackElo "2505"]
[Annotator "TA"]
[PlyCount "136"]
[EventDate "2023.10.21"]
[EventType "team-tourn"]
[EventCountry "AUT"]
[SourceTitle "playchess.com"]
[Source "ChessBase"]
[SourceQuality "1"]
[TimeControl "40/5400+30:1800+30"]

{[%evp 14,136,20,14,23,29,62,57,46,28,34,47,49,17,146,47,56,18,64,39,88,91,80,79,90,87,88,60,52,21,27,12,26,21,23,26,20,18,25,26,30,33,32,21,16,0,0,0,0,0,0,0,0,0,-1,-8,-10,-12,-12,-13,-4,-30,-29,-166,-166,-166,-166,-194,-185,-174,-158,-192,-162,-186,-157,-171,-172,-260,-268,-268,-252,-256,-253,-457,-481,-564,-569,-566,-548,-630,-271,-271,-271,-266,-271,-265,-215,-200,-30,-30,-25,-24,-21,-21,-8,-8,-8,-8,-8,-8,-8,-8,-8,-8,-8,-29981,-29982,-29982,-29983,-29983,-29984,-29984,-29985,-29985,-29986]} 1. e4 {[%emt 0:00:02]} c5 {[%emt 0:00:06]} 2. Nf3 {[%emt 0:00:05]} e6 {[%emt 0:00:08]} 3. d4 {[%emt 0:00:04]} cxd4 {[%emt 0:00:05]} 4. Nxd4 {[%emt 0:00:08]} a6 {[%emt 0:00:05]} 5. Nc3 {[%emt 0:00:09]} Qc7 {[%emt 0:00:11]} 6. Bd3 {[%emt 0:00:10]} Nf6 {[%emt 0:00:26]} 7. Qe2 {[%emt 0:00:16]} d6 {[%emt 0:00:16]} 8. f4 {[%emt 0:01:10]} Nbd7 {[%emt 0:01:20]} 9. g4 {[%emt 0:00:19][%cal Bg2g4,Bg4g5][%mdl 32]} Nc5 {[%emt 0:03:55]} 10. g5 {[%emt 0:01:28]} Nfd7 {[%emt 0:00:05] Weiß steht etwas besser.} 11. Be3 {[%emt 0:04:53]} b5 {[%emt 0:11:59]} 12. a3 {[%emt 0:00:49]} Bb7 {[%emt 0:05:50]} 13. O-O-O {[%emt 0:03:05]} O-O-O {[%emt 0:06:05] [#]} (13... Nxd3+ $11 {bleibt in der Remisbreite.} 14. cxd3 d5) 14. Kb1 {[%emt 0:20:17]} (14. Bxb5 $1 $16 Kb8 (14... axb5 15. Ndxb5 Qb6 16. b4 $18) 15. Bxd7 Rxd7 16. Bf2) 14... Kb8 $14 {[%emt 0:05:19]} 15. Rc1 {[%emt 0:07:13]} Nb6 {[%emt 0:08:07]} (15... h6 $1 $11) 16. Nb3 {[%emt 0:13:28]} d5 {[%emt 0:24:22]} (16... Nbd7 $14) 17. exd5 {[%emt 0:14:43]} Nxd5 {[%emt 0:00:29]} 18. Nxd5 {[%emt 0:00:29]} Bxd5 {[%emt 0:00:33] [#]} 19. Bxc5 {[%emt 0:12:20]} Bxc5 {[%emt 0:00:33] [#]} 20. Nxc5 $1 {[%emt 0:06:27]} Qxc5 {[%emt 0:00:06]} 21. Qe5+ {[%emt 0:03:07]} Qc7 {[%emt 0:00:43]} 22. Rhf1 {[%emt 0:00:35]} Qxe5 {[%emt 0:05:15]} 23. fxe5 {[%emt 0:00:12]} Rd7 {[%emt 0:00:13]} 24. Rf4 {[%emt 0:02:18]} h6 {[%emt 0:00:15]} 25. Rh4 {[%emt 0:01:51]} Rdd8 {[%emt 0:03:07]} 26. gxh6 {[%emt 0:01:43]} Rxh6 {[%emt 0:00:06]} 27. Rxh6 {[%emt 0:00:20]} gxh6 $11 {[%emt 0:00:02][%mdl 4096] Endspiel. KRB-KRB} 28. Rg1 {[%emt 0:02:30]} Bb7 {[%emt 0:03:05]} 29. Rg7 {[%emt 0:01:22]} Rd5 {[%emt 0:00:06]} 30. Rxf7 {[%emt 0:00:39]} Rxe5 {[%emt 0:00:06]} 31. Kc1 {[%emt 0:01:44]} Rh5 {[%emt 0:00:53]} 32. Rf2 {[%emt 0:01:02]} Rh4 {[%emt 0:00:13]} 33. Kd2 {[%emt 0:00:33]} Kc7 {[%emt 0:00:31]} 34. b3 {[%emt 0:01:17]} Bd5 {[%emt 0:01:17]} 35. Rf7+ {[%emt 0:00:35]} Kc6 {[%emt 0:00:52]} 36. Rf2 {[%emt 0:00:22]} Kc5 {[%emt 0:01:25]} 37. Kc3 {[%emt 0:00:40]} a5 {[%emt 0:00:16]} 38. b4+ {[%emt 0:00:29]} axb4+ $19 {[%emt 0:00:17]} 39. axb4+ {[%emt 0:00:05]} Rxb4 {[%emt 0:00:20]} 40. Rf8 {[%emt 0:00:00] [#]} Rh4 $1 {[%emt 0:00:00]} 41. Rc8+ {[%emt 0:14:21]} Bc6 {[%emt 0:04:50]} 42. Bg6 {[%emt 0:03:10]} Kb6 {[%emt 0:02:49]} (42... Rxh2 $2 43. Be8 $18) 43. Rd8 {[%emt 0:05:22]} b4+ {[%emt 0:04:06]} (43... Rxh2 44. Rd6 Kc5 45. Rxe6 $11) 44. Kb2 {[%emt 0:01:11]} Bd5 {[%emt 0:03:46]} (44... Rxh2 45. Rd6 Kc5 46. Rxe6 $15) 45. Bf7 {[%emt 0:04:47]} (45. Rb8+ $142 Kc7 46. Rb5) 45... Kc7 {[%emt 0:06:28]} (45... Rxh2 46. Bxe6 Bc6 (46... Bxe6 47. Rd6+ Kc5 48. Rxe6 $11) 47. Kb3 $11) 46. Re8 {[%emt 0:00:33]} Kd6 {[%emt 0:04:24]} (46... Rxh2 47. Bxe6 Bc6 48. Rf8 $15) 47. Rb8 {[%emt 0:01:04]} Ke5 {[%emt 0:07:04]} (47... Rxh2 48. Rxb4 h5 49. Bg6 $17) 48. Rb6 $2 {[%emt 0:03:06]} (48. h3) 48... h5 {[%emt 0:01:35]} (48... Rxh2 $2 49. Rxb4 h5 50. Bg6 $19) 49. Bg6 {[%emt 0:01:03]} b3 {[%emt 0:01:44]} (49... Rxh2 $2 50. Rxb4 h4 51. Bd3 $19) 50. cxb3 {[%emt 0:00:35]} Rxh2+ {[%emt 0:00:05]} 51. Kc3 {[%emt 0:00:31]} Rh3+ {[%emt 0:01:31]} (51... h4 $142 52. Rb4 h3 (52... Rg2 $2 53. Rxh4 Rxg6 54. b4 $19)) 52. Kd2 {[%emt 0:00:33]} h4 {[%emt 0:00:33]} (52... Bxb3 53. Bxh5 Bd5 54. Bg4 $15) 53. Rb4 {[%emt 0:01:02]} Rg3 {[%emt 0:01:12]} (53... Rxb3 54. Rxh4 Rb2+ 55. Ke3 $11) 54. Bd3 {[%emt 0:00:39]} h3 {[%emt 0:00:43]} 55. Rh4 {[%emt 0:00:18]} Rg2+ $2 {[%emt 0:00:11]} (55... Bxb3 56. Bf1 $11) (55... Kf6 $19 {Droht ...Rg2+ und aus.} 56. Rh8 e5 (56... Bxb3 57. Bf1 $15)) 56. Ke3 $11 {[%emt 0:00:18]} h2 {[%emt 0:00:09]} (56... Bxb3 57. Rxh3 Rg8 58. Rh5+ Kf6 59. Rh6+ Kg5 60. Rh2) 57. Rh5+ $1 {[%emt 0:00:39]} Kf6 {[%emt 0:12:46] ...Rg3+ wäre nun fies.} (57... Kd6 $5 58. Be4 $8 Bxe4 (58... Bxb3 $2 59. Bxg2 h1=B 60. Bxh1 $18) 59. Kxe4 Rg3 $17) 58. Be4 {[%emt 0:00:30]} Bxe4 {[%emt 0:01:37]} (58... Bxb3 $2 {verliert.} 59. Bxg2 h1=B 60. Bxh1 $18 (60. Rxh1 Ke5 $18)) 59. Kxe4 {[%emt 0:00:05] KR-KR} Kg6 {[%emt 0:00:07]} 60. Rh8 {[%emt 0:00:45]} Kg5 {[%emt 0:00:21]} 61. Kf3 {[%emt 0:00:54]} Rb2 {[%emt 0:00:09]} 62. Kg3 {[%emt 0:00:33]} e5 {[%emt 0:01:05] ...e4 ist eine echte Drohung.} (62... Rxb3+ 63. Kxh2 Kg4 64. Rf8) 63. b4 {[%emt 0:00:26]} Rxb4 {[%emt 0:00:58] ( -> ...Rg4+)} 64. Kxh2 $2 {[%emt 0:00:11][%mdl 8192]} (64. Rg8+ $11 Kf5 65. Kxh2) 64... Rh4+ {[%emt 0:00:18] Schwarz setzt Matt.} 65. Rxh4 {[%emt 0:00:43]} Kxh4 {[%emt 0:00:01]} 66. Kg2 {[%emt 0:00:35]} Kg4 {[%emt 0:00:03]} 67. Kf2 {[%emt 0:00:21]} Kf4 {[%emt 0:00:31]} 68. Ke2 {[%emt 0:00:05]} Ke4 {[%emt 0:00:00] Gewichteter Fehlerwert: Weiß=0.23 (präzise) /Schwarz=0.23 (präzise) .  Verlustzug:     	Weiß=1     	---        Gewinn verpasst:   	---       	Schwarz=1     Fehler:       	Weiß=4     	Schwarz=4     Ungenau:       	Weiß=5     	Schwarz=1     OK:         	Weiß=20    	Schwarz=20    Bester:       	Weiß=6     	Schwarz=5     Stark:        	Weiß=1     	Schwarz=1} 0-1

[Event "Austrian Bundesliga 2023-24"]
[Site "Austria"]
[Date "2024.03.23"]
[Round "10.18"]
[White "Rogic, Davor"]
[Black "Hoefelsauer, Thomas"]
[Result "1/2-1/2"]
[ECO "B10"]
[WhiteElo "2418"]
[BlackElo "2302"]
[Annotator "RC"]
[PlyCount "161"]
[EventDate "2023.10.21"]
[EventType "team-tourn"]
[EventCountry "AUT"]
[SourceTitle "playchess.com"]
[Source "ChessBase"]
[SourceQuality "1"]
[TimeControl "40/5400+30:1800+30"]

1. e4 {[%emt 0:00:08]} c6 {[%emt 0:00:03]} 2. d3 {[%emt 0:00:10]} d5 {[%emt 0:00:25]} 3. Nd2 {[%emt 0:00:07]} e5 {[%emt 0:00:19]} 4. Ngf3 {[%emt 0:00:09]} Bd6 {[%emt 0:00:29]} 5. d4 {[%emt 0:00:08]} exd4 {[%emt 0:00:42]} 6. exd5 {[%emt 0:00:15]} Nf6 {[%emt 0:00:18]} 7. dxc6 {[%emt 0:02:13]} Nxc6 {[%emt 0:00:09]} 8. Be2 {[%emt 0:01:24]} Bc7 {[%emt 0:00:19]} 9. Nb3 {[%emt 0:06:49]} Bb6 {[%emt 0:01:05]} 10. O-O {[%emt 0:02:08]} O-O {[%emt 0:00:13]} 11. Bg5 {[%emt 0:01:30]} h6 {[%emt 0:01:11]} 12. Bh4 {[%emt 0:00:51]} g5 {[%emt 0:07:51]} 13. Bg3 {[%emt 0:00:04]} Ne4 {[%emt 0:00:24]} 14. Bb5 {[%emt 0:15:17]} Nxg3 {[%emt 0:02:21]} 15. hxg3 {[%emt 0:00:48]} Qf6 {[%emt 0:09:50]} 16. Bxc6 {[%emt 0:04:46]} bxc6 {[%emt 0:00:12]} 17. Nfxd4 {[%emt 0:00:51]} a5 {[%emt 0:12:10]} 18. a4 {[%emt 0:05:46]} Rd8 {[%emt 0:18:02]} 19. c3 {[%emt 0:02:59]} c5 {[%emt 0:00:40]} 20. Qf3 {[%emt 0:00:38]} Qxf3 {[%emt 0:00:28]} 21. Nxf3 {[%emt 0:00:08]} Be6 {[%emt 0:00:13]} 22. Nc1 {[%emt 0:06:06]} g4 {[%emt 0:02:58]} 23. Ne5 {[%emt 0:01:30]} Bc7 {[%emt 0:03:45]} 24. Ned3 {[%emt 0:04:55]} c4 {[%emt 0:01:45]} 25. Nf4 {[%emt 0:04:25]} Bxf4 {[%emt 0:05:53]} 26. gxf4 {[%emt 0:00:06]} Rd2 {[%emt 0:01:03]} 27. Re1 {[%emt 0:03:12]} Rb8 {[%emt 0:06:19]} 28. Ra2 {[%emt 0:00:38]} Rbxb2 {[%emt 0:03:11]} 29. Rxb2 Rxb2 {[%emt 0:00:02]} 30. Ne2 {[%emt 0:00:19]} Ra2 {[%emt 0:08:46]} 31. Nd4 {[%emt 0:00:45]} Bd7 {[%emt 0:01:15]} 32. Re5 {[%emt 0:04:28]} Rxa4 {[%emt 0:01:47]} 33. Rd5 {[%emt 0:02:02]} Be8 {[%emt 0:02:16]} 34. Rd8 {[%emt 0:03:38]} Kf8 {[%emt 0:00:03]} 35. Nf5 {[%emt 0:00:53]} Ra3 {[%emt 0:02:21]} 36. Ra8 {[%emt 0:00:44]} Rxc3 {[%emt 0:01:23]} 37. Rxa5 {[%emt 0:02:25]} Rc1+ {[%emt 0:03:09]} 38. Kh2 {[%emt 0:00:04]} h5 {[%emt 0:02:00]} 39. Ra8 {[%emt 0:00:28]} c3 {[%emt 0:00:44]} 40. Rc8 {[%emt 0:00:00]} f6 {[%emt 0:00:00]} 41. Kg3 {[%emt 0:08:19]} c2 {[%emt 0:04:27]} 42. Ne3 {[%emt 0:03:40]} h4+ {[%emt 0:08:17]} 43. Kxg4 {[%emt 0:04:04]} h3 {[%emt 0:00:12]} 44. Kg3 {[%emt 0:00:05]} hxg2 {[%emt 0:00:04]} 45. Kxg2 {[%emt 0:00:11]} Ke7 {[%emt 0:00:49]} 46. Rxc2 {[%emt 0:00:47]} Rxc2 {[%emt 0:00:06]} 47. Nxc2 {[%emt 0:00:01]} Bh5 {[%emt 0:01:02]} 48. Ne3 {[%emt 0:00:37]} Be2 {[%emt 0:00:27]} 49. Nf5+ {[%emt 0:00:29]} Kf7 {[%emt 0:00:14]} 50. Nd4 {[%emt 0:01:52]} Bg4 {[%emt 0:00:39]} 51. Kg3 {[%emt 0:00:15]} Bd1 {[%emt 0:00:08]} 52. Kh4 {[%emt 0:00:40]} Kg6 {[%emt 0:00:47]} 53. Nb5 {[%emt 0:02:01]} Kf5 {[%emt 0:00:49]} 54. Kg3 {[%emt 0:01:37]} Ke6 {[%emt 0:01:19]} 55. Nd4+ {[%emt 0:01:24]} Kd5 {[%emt 0:00:44]} 56. Nf5 {[%emt 0:00:47]} Ke6 {[%emt 0:00:02]} 57. Ne3 {[%emt 0:00:35]} Be2 {[%emt 0:00:18]} 58. Kg2 {[%emt 0:01:02]} Kd6 {[%emt 0:00:33]} 59. Nf5+ {[%emt 0:01:08]} Kd7 {[%emt 0:01:17]} 60. Kg3 {[%emt 0:01:05]} Bd1 {[%emt 0:00:23]} 61. Nd4 {[%emt 0:03:22]} Kd6 {[%emt 0:00:38]} 62. f3 {[%emt 0:01:03]} Kd5 {[%emt 0:00:36]} 63. Nb5 {[%emt 0:00:46]} Ke6 {[%emt 0:01:09]} 64. Kg4 {[%emt 0:00:53]} Ba4 {[%emt 0:01:29]} 65. Nd4+ {[%emt 0:01:59]} Kd5 {[%emt 0:00:33]} 66. Ne2 {[%emt 0:00:30]} Ke6 {[%emt 0:00:37]} 67. Ng3 {[%emt 0:01:12]} Kf7 {[%emt 0:01:47]} 68. f5 {[%emt 0:00:39]} Bd1 {[%emt 0:00:29]} 69. Kf4 {[%emt 0:00:25]} Ke7 {[%emt 0:02:37]} 70. Nf1 {[%emt 0:00:12]} Bb3 {[%emt 0:00:15]} 71. Ne3 {[%emt 0:00:07]} Ba2 {[%emt 0:00:42]} 72. Ke4 {[%emt 0:01:02]} Bb3 {[%emt 0:00:49]} 73. Kd4 {[%emt 0:00:18]} Kd6 {[%emt 0:00:43]} 74. Ng4 {[%emt 0:00:45]} Ke7 {[%emt 0:00:03]} 75. f4 {[%emt 0:01:42]} Bc2 {[%emt 0:01:15]} 76. Ne3 {[%emt 0:00:14]} Bb1 {[%emt 0:00:09]} 77. Kd5 {[%emt 0:00:49]} Bd3 {[%emt 0:00:19]} 78. Kc6 {[%emt 0:00:56]} Be4+ {[%emt 0:00:19]} 79. Kc7 {[%emt 0:00:30]} Bd3 {[%emt 0:00:51]} 80. Nd5+ {[%emt 0:00:35]} Kf7 {[%emt 0:00:18]} 81. Ne3 1/2-1/2

[Event "Austrian Bundesliga 2023-24"]
[Site "Austria"]
[Date "2024.03.23"]
[Round "10.19"]
[White "Georgiadis, Nico"]
[Black "Michalik, Peter"]
[Result "0-1"]
[ECO "B35"]
[WhiteElo "2537"]
[BlackElo "2562"]
[Annotator "TA"]
[PlyCount "88"]
[EventDate "2023.10.21"]
[EventType "team-tourn"]
[EventCountry "AUT"]
[SourceTitle "playchess.com"]
[Source "ChessBase"]
[SourceQuality "1"]
[TimeControl "40/5400+30:1800+30"]

{[%evp 28,88,16,12,24,0,0,0,0,0,0,0,0,0,0,0,0,-15,0,-16,0,0,0,-12,-21,-25,-20,-20,0,-17,-8,-41,-6,-39,-34,-25,0,0,0,-8,0,0,-17,-20,-20,-61,-60,-90,-95,-443,-435,-1032,-917,-998,-901,-1116,-1077,-1093,-1082,-1016,-951,-1305,-1213]} 1. e4 {[%emt 0:00:05]} c5 {[%emt 0:00:05]} 2. Nf3 {[%emt 0:00:07]} Nc6 {[%emt 0:00:04]} 3. Nc3 {[%emt 0:00:27]} g6 {[%emt 0:00:26]} 4. d4 {[%emt 0:00:07]} cxd4 {[%emt 0:00:06]} 5. Nxd4 {[%emt 0:00:05]} Bg7 {[%emt 0:00:07]} 6. Be3 {[%emt 0:00:06]} Nf6 {[%emt 0:00:07]} 7. Bc4 {[%emt 0:00:45]} O-O {[%emt 0:00:35]} 8. Bb3 {[%emt 0:00:04]} d6 {[%emt 0:00:15]} 9. f3 {[%emt 0:00:18]} Qa5 {[%emt 0:01:06]} 10. Qd2 {[%emt 0:03:05]} Nxd4 {[%emt 0:00:32]} 11. Bxd4 {[%emt 0:00:04]} Be6 {[%emt 0:00:22]} 12. O-O-O {[%emt 0:01:28]} b5 {[%emt 0:00:18][%cal Bb7b5,Bb5b4][%mdl 32]} 13. Kb1 {[%emt 0:03:44]} b4 {[%emt 0:00:36]} 14. Nd5 {[%emt 0:11:27]} Bxd5 {[%emt 0:00:09]} 15. exd5 {[%emt 0:03:00]} Qb5 $1 {[%emt 0:00:30]} 16. Rhe1 {[%emt 0:05:36]} a5 $1 {[%emt 0:00:26] ...a4 would now be deadly.} 17. Qe2 {[%emt 0:04:08]} (17. Rxe7 $2 {is the wrong capture.} a4 18. Qd3 (18. Bxf6 $2 Bxf6 19. Re4 axb3 $19) 18... Qxd3 19. Rxd3 axb3 20. cxb3 Nxd5 21. Bxg7 Nxe7 $19) 17... Qxe2 {[%emt 0:00:25] The position is equal.} 18. Rxe2 {[%emt 0:00:03]} a4 {[%emt 0:00:49]} 19. Bc4 {[%emt 0:00:06][%cal Oc4b5]} Rfc8 {[%emt 0:00:11]} 20. b3 {[%emt 0:03:58]} Rc7 {[%emt 0:02:31]} 21. g4 {[%emt 0:07:37]} Rb7 {[%emt 0:04:46]} 22. h3 {[%emt 0:13:21]} Ne8 {[%emt 0:07:46]} 23. f4 {[%emt 0:02:35]} Kf8 {[%emt 0:04:48]} 24. Bxg7+ {[%emt 0:01:55]} Kxg7 {[%emt 0:01:43]} 25. bxa4 {[%emt 0:05:25]} Rxa4 {[%emt 0:00:16]} 26. Bb3 {[%emt 0:00:29]} Ra8 {[%emt 0:07:35]} 27. Rd4 {[%emt 0:06:32]} Kf8 {[%emt 0:06:27]} 28. Ree4 {[%emt 0:09:39]} Rab8 {[%emt 0:00:22]} 29. Ba4 {[%emt 0:02:45]} Nc7 {[%emt 0:02:02]} 30. Kb2 {[%emt 0:00:29]} Na6 {[%emt 0:00:37]} 31. Bc6 {[%emt 0:00:49]} Rb6 {[%emt 0:00:15]} 32. Re3 {[%emt 0:01:38]} Nc5 {[%emt 0:00:56]} 33. f5 {[%emt 0:03:55]} Rc8 {[%emt 0:04:02]} 34. h4 {[%emt 0:02:41]} Rc7 {[%emt 0:00:24]} 35. Rf3 {[%emt 0:03:35]} Ra7 {[%emt 0:04:45]} 36. Rdf4 {[%emt 0:01:09] aiming for fxg6.} gxf5 {[%emt 0:05:19]} (36... Rba6 37. fxg6 Rxa2+ 38. Kc1 Ra1+ 39. Kd2 $14) 37. Rxf5 {[%emt 0:01:22] [#]} e5 $1 {[%emt 0:01:35]} 38. Rh5 $2 {[%emt 0:01:59][%mdl 8192] Loses the game.} (38. dxe6 $17 {is a better chance.} Rxc6 39. Rxf7+ Rxf7 40. Rxf7+ Ke8 41. Rxh7) 38... Rba6 $19 {[%emt 0:00:53] Black is clearly winning.} 39. Rxh7 {[%emt 0:00:47]} (39. a4 $142 bxa3+ (39... Nxa4+ 40. Bxa4 Rxa4 41. Rf6 $15) 40. Ka2) 39... Rxa2+ {[%emt 0:10:37]} 40. Kc1 {[%emt 0:00:00]} Kg8 {[%emt 0:00:00]} 41. Rh5 {[%emt 0:02:09]} Ra1+ {[%emt 0:07:03]} 42. Kd2 {[%emt 0:01:43]} Ne4+ {[%emt 0:00:15]} 43. Ke2 {[%emt 0:01:29]} R7a2 {[%emt 0:03:18]} 44. Re3 {[%emt 0:01:20] [#]} Ng3+ $1 {[%emt 0:02:01][%mdl 512] Weighted Error Value: White=0.69/Black=0.04 (flawless) .  Loses game:     	White=1     	---        Mistake:       	White=1     	---        Inaccurate:     	White=4     	Black=1      OK:         	White=7     	Black=10     Best:        	White=1     	Black=3      Strong:       	---       	Black=2} 0-1

[Event "Austrian Bundesliga 2023-24"]
[Site "Austria"]
[Date "2024.03.23"]
[Round "10.20"]
[White "Vogel, Roven"]
[Black "Deuer, Marius"]
[Result "1-0"]
[ECO "A35"]
[WhiteElo "2521"]
[BlackElo "2430"]
[Annotator "TA"]
[PlyCount "125"]
[EventDate "2023.10.21"]
[EventType "team-tourn"]
[EventCountry "AUT"]
[SourceTitle "playchess.com"]
[Source "ChessBase"]
[SourceQuality "1"]
[TimeControl "40/5400+30:1800+30"]

{[%evp 28,124,5,16,9,11,14,2,136,119,144,146,140,143,145,150,150,142,162,159,155,148,148,156,201,193,206,215,222,198,226,197,205,179,226,222,252,264,369,369,379,368,416,373,471,454,457,372,389,401,483,404,486,479,545,549,548,529,584,573,595,528,541,525,525,499,620,564,497,643,649,643,643,640,614,603,1404,1279,1520,1495,852,784,7024,6440,7247,5719,2992,1929,1693,1362,1543,1543,1129,984,29953,12741,5595,5421,5595]} 1. c4 {[%emt 0:00:14]} Nf6 {[%emt 0:00:15]} 2. Nf3 {[%emt 0:04:54]} c5 {[%emt 0:00:37]} 3. Nc3 {[%emt 0:00:10]} Nc6 {[%emt 0:00:09]} 4. e3 {[%emt 0:00:25]} a6 {[%emt 0:03:50]} 5. b3 {[%emt 0:01:24]} g6 {[%emt 0:09:20]} 6. Bb2 {[%emt 0:22:20] A34: Symmetrical English: 2 Nc3, lines with ...d5.} Bg7 {[%emt 0:09:09]} 7. d4 $146 {[%emt 0:03:05]} ({Predecessor:} 7. Rc1 O-O 8. Be2 e5 9. O-O d6 10. Ng5 h6 11. Nge4 Nxe4 12. Nxe4 Be6 13. f4 {½-½ Le,Q (2728)-Dominguez Perez,L (2739) Aimchess Rapid Div 3 W 2023 (3.2)}) 7... cxd4 {[%emt 0:05:25]} 8. Nxd4 {[%emt 0:01:21]} O-O {[%emt 0:05:25]} 9. Be2 {[%emt 0:01:45]} d5 {[%emt 0:03:23]} 10. Nxc6 {[%emt 0:06:29]} bxc6 {[%emt 0:00:51]} 11. Na4 {[%emt 0:00:08]} Bf5 {[%emt 0:10:51]} 12. O-O {[%emt 0:00:35]} Qd6 {[%emt 0:00:26]} 13. h3 {[%emt 0:08:33]} e5 {[%emt 0:03:15]} 14. Bd3 {[%emt 0:06:25]} Bxd3 {[%emt 0:07:06]} 15. Qxd3 {[%emt 0:00:03]} Ne4 {[%emt 0:01:04]} 16. Rfd1 {[%emt 0:06:24]} Rfd8 {[%emt 0:03:06]} 17. Qc2 {[%emt 0:08:58]} Ng5 {[%emt 0:05:52]} (17... Rab8 $11 {remains equal.}) 18. h4 $1 $16 {[%emt 0:02:17]} Ne6 {[%emt 0:09:19]} 19. Nb6 {[%emt 0:00:34]} d4 {[%emt 0:00:10]} 20. Nxa8 {[%emt 0:03:04]} Rxa8 {[%emt 0:00:07]} 21. exd4 {[%emt 0:00:19]} exd4 {[%emt 0:00:14]} 22. Qe4 {[%emt 0:00:43]} Rd8 {[%emt 0:01:40]} 23. Re1 {[%emt 0:01:26]} h5 {[%emt 0:02:03]} 24. Rad1 {[%emt 0:01:59]} a5 {[%emt 0:02:11]} 25. Bc1 {[%emt 0:02:04]} Bf6 {[%emt 0:06:31]} 26. g3 {[%emt 0:01:53]} Ra8 {[%emt 0:00:34]} 27. Kg2 {[%emt 0:04:39]} Ra7 {[%emt 0:06:46]} 28. Qf3 {[%emt 0:03:10]} Bg7 {[%emt 0:00:29]} 29. Bf4 {[%emt 0:03:15]} Qc5 {[%emt 0:00:47]} 30. Re4 {[%emt 0:01:16]} a4 {[%emt 0:01:56]} (30... Qe7 $142 31. Be5 c5) 31. Rde1 $18 {[%emt 0:00:07]} axb3 {[%emt 0:00:24]} 32. axb3 {[%emt 0:00:08]} Qf5 {[%emt 0:00:32]} 33. Rxe6 {[%emt 0:01:27]} fxe6 {[%emt 0:00:05]} 34. Qxc6 {[%emt 0:00:06]} e5 {[%emt 0:00:22] [#]} 35. Bxe5 $1 {[%emt 0:02:15]} Re7 {[%emt 0:02:44]} 36. Qa8+ {[%emt 0:00:39]} Bf8 {[%emt 0:00:21]} 37. Qd5+ {[%emt 0:01:28]} Kh7 {[%emt 0:00:01]} 38. Qe4 {[%emt 0:02:38]} (38. Qxd4 Bg7 39. f4 Qc2+ 40. Qf2 Qxb3 41. Bxg7 Rxg7 $18) 38... Qxe4+ {[%emt 0:00:45]} 39. Rxe4 {[%emt 0:00:02]} d3 {[%emt 0:00:07]} 40. Kf3 {[%emt 0:00:00]} Bg7 {[%emt 0:00:00] [#]} 41. Bf4 $1 {[%emt 0:03:55]} ({Weaker is} 41. Bxg7 Rxe4 42. Bc3 (42. Kxe4 $2 {perishes.} d2 $19) 42... Re6 $11) 41... Rd7 {[%emt 0:09:01]} 42. Re1 {[%emt 0:03:51]} Bc3 {[%emt 0:05:16]} 43. Rd1 {[%emt 0:00:26]} Bb4 {[%emt 0:02:43]} 44. Be3 {[%emt 0:00:50]} Kg8 {[%emt 0:00:55]} 45. Ke4 {[%emt 0:00:58]} d2 {[%emt 0:00:48]} 46. c5 {[%emt 0:00:50]} Kf7 {[%emt 0:01:17]} 47. c6 {[%emt 0:00:54]} Rd6 {[%emt 0:00:53]} 48. c7 {[%emt 0:02:26]} Rc6 {[%emt 0:00:04]} 49. Bxd2 {[%emt 0:00:06]} Bxd2 {[%emt 0:00:07]} 50. Rxd2 {[%emt 0:00:05]} Rxc7 {[%emt 0:00:04]} 51. Rb2 {[%emt 0:00:18]} Rc5 {[%emt 0:01:08]} 52. Kd4 {[%emt 0:01:08]} Rf5 {[%emt 0:00:06]} 53. b4 {[%emt 0:00:07]} Ke7 {[%emt 0:00:09]} 54. b5 {[%emt 0:01:11]} Kd7 {[%emt 0:00:06]} 55. b6 {[%emt 0:00:04]} Kc8 {[%emt 0:00:04]} 56. b7+ {[%emt 0:00:03]} Kb8 {[%emt 0:00:05]} 57. Ke4 {[%emt 0:00:06]} Ra5 {[%emt 0:00:26]} 58. Rb3 {[%emt 0:00:53]} Ra2 {[%emt 0:01:40]} 59. f3 {[%emt 0:00:36]} Ra5 {[%emt 0:01:10]} 60. Rb6 {[%emt 0:01:02]} g5 {[%emt 0:00:16]} 61. hxg5 {[%emt 0:00:55]} Rxg5 {[%emt 0:00:06]} 62. Kf4 {[%emt 0:00:11]} Ra5 {[%emt 0:00:07]} 63. g4 {[%emt 0:00:09]} 1-0